fUST/lending_fUST_20250713
["ID","MTS","AMOUNT","RATE_DAILY","PERIOD"]
[371743733,1752412260789,-526.59,0.00021643,2]
[371743734,1752412260799,-798.12,0.00021643,2]
[371743735,1752412260808,-733.1,0.00021643,2]
[371743736,1752412260817,-460.0,0.00021643,2]
[371743737,1752412260827,-913.51,0.00021643,2]
[371743738,1752412260836,-957.33,0.00021643,2]
[371743739,1752412260845,-2411.81,0.00021643,2]
[371743740,1752412260859,-588.65,0.00021643,2]
[371743741,1752412260869,-2270.15,0.00021643,2]
[371743742,1752412260879,-642.75,0.00021643,2]
[371743743,1752412260888,-180.182,0.00021818,2]
[371743744,1752412260898,-642.0,0.00021818,2]
[371743745,1752412260909,-642.0,0.00021821,2]
[371743746,1752412260918,-642.0,0.00021829,2]
[371743747,1752412260928,-642.0,0.00021852,2]
[371743748,1752412260938,-391.41193108,0.00021866,6]
[371743749,1752412260947,-460.0,0.00021917,2]
[371743750,1752412260957,-480.06,0.00021917,2]
[371743751,1752412260966,-460.0,0.00021917,2]
[371743752,1752412260975,-521.93,0.00021917,2]
[371743753,1752412260984,-546.38,0.00021917,2]
[371743754,1752412260994,-460.0,0.00021917,2]
[371743755,1752412261004,-1097.75,0.00021917,2]
[371743756,1752412261013,-460.0,0.00021917,2]
[371743757,1752412261023,-1912.71,0.00021917,2]
[371743758,1752412261032,-2434.91,0.00021917,2]
[371743759,1752412261041,-461.02,0.00021917,2]
[371743760,1752412261051,-507.11,0.00021917,2]
[371743761,1752412261060,-1857.93,0.00021917,2]
[371743762,1752412261069,-600.71,0.00021917,2]
[371743763,1752412261079,-1161.66,0.00021917,2]
[371743764,1752412261088,-1318.75,0.00021917,2]
[371743765,1752412261101,-625.22,0.00021917,2]
[371743766,1752412261110,-584.52,0.00021917,2]
[371743767,1752412261120,-658.56,0.00021917,2]
[371743768,1752412261129,-421.67,0.00021917,2]
[371743769,1752412261139,-542.25766755,0.00021917,2]
[371743770,1752412261149,-526.59,0.00021917,2]
[371743771,1752412261160,-798.12,0.00021917,2]
[371743772,1752412261170,-733.1,0.00021917,2]
[371743773,1752412261180,-460.0,0.00021917,2]
[371743774,1752412261190,-913.51,0.00021917,2]
[371743775,1752412261201,-957.33,0.00021917,2]
[371743776,1752412261312,-2411.81,0.00021917,2]
[371743777,1752412261323,-588.65,0.00021917,2]
[371743778,1752412261333,-2270.15,0.00021917,2]
[371743779,1752412261343,-642.75,0.00021917,2]
[371743780,1752412261357,-202.195,0.00021927,2]
[371743781,1752412261366,-214.674,0.00021927,2]
[371743782,1752412261376,-248.989,0.00021927,2]
[371743783,1752412261386,-249.539,0.00021927,2]
[371743784,1752412261396,-259.666,0.00021927,2]
[371743785,1752412261405,-217.653,0.00021927,2]
[371743786,1752412261414,-1729.494,0.00021927,2]
[371743787,1752412261424,-642.0,0.00021938,2]
[371743788,1752412261433,-642.0,0.00021972,2]
[371743789,1752412261443,-177.763542,0.00021973,2]
[371743790,1752412261452,-343.5350398,0.00021973,2]
[371743791,1752412261462,-642.0,0.00021997,2]
[371743792,1752412261472,-642.0,0.00021998,2]
[371743793,1752412261481,-560.347522,0.00022015,4]
[371743794,1752412261490,-411.90380907,0.00022091,2]
[371743795,1752412261499,-391.41193108,0.00022176,6]
[371743796,1752412261508,-642.0,0.0002219,2]
[371743797,1752412261517,-4332.31504267,0.00022191,2]
[371743798,1752412261527,-3396.57186598,0.00022191,2]
[371743799,1752412261540,-151.0,0.00022191,7]
[371743800,1752412261550,-171.008502,0.00022191,7]
[371743801,1752412261559,-460.0,0.00022191,2]
[371743802,1752412261569,-151.0,0.00022191,7]
[371743803,1752412261579,-151.0,0.00022191,7]
[371743804,1752412261588,-480.06,0.00022191,2]
[371743805,1752412261599,-289.935429,0.00022191,7]
[371743806,1752412261608,-289.935429,0.00022191,7]
[371743807,1752412261617,-238.845428,0.00022191,2]
[371743808,1752412261627,-238.845428,0.00022191,2]
[371743809,1752412261636,-460.0,0.00022191,2]
[371743810,1752412261646,-225.549012,0.00022191,7]
[371743811,1752412261655,-521.93,0.00022191,2]
[371743812,1752412261666,-546.38,0.00022191,2]
[371743813,1752412261677,-460.0,0.00022191,2]
[371743814,1752412261688,-1097.75,0.00022191,2]
[371743815,1752412261699,-460.0,0.00022191,2]
[371743816,1752412261709,-1912.71,0.00022191,2]
[371743817,1752412261718,-2434.91,0.00022191,2]
[371743818,1752412261729,-461.02,0.00022191,2]
[371743819,1752412261739,-507.11,0.00022191,2]
[371743820,1752412261749,-1857.93,0.00022191,2]
[371743821,1752412261759,-600.71,0.00022191,2]
[371743822,1752412261768,-1161.66,0.00022191,2]
[371743823,1752412261778,-1318.75,0.00022191,2]
[371743824,1752412261788,-625.22,0.00022191,2]
[371743825,1752412261799,-584.52,0.00022191,2]
[371743826,1752412261811,-658.56,0.00022191,2]
[371743827,1752412261822,-526.59,0.00022191,2]
[371743828,1752412261831,-798.12,0.00022191,2]
[371743829,1752412261842,-733.1,0.00022191,2]
[371743830,1752412261854,-460.0,0.00022191,2]
[371743831,1752412261863,-913.51,0.00022191,2]
[371743832,1752412261873,-957.33,0.00022191,2]
[371743833,1752412261882,-2411.81,0.00022191,2]
[371743834,1752412261892,-588.65,0.00022191,2]
[371743835,1752412261902,-2270.15,0.00022191,2]
[371743836,1752412261913,-642.75,0.00022191,2]
[371743837,1752412261923,-642.0,0.00022233,2]
[371743838,1752412261933,-642.0,0.00022287,2]
[371743839,1752412261943,-642.0,0.00022314,2]
[371743840,1752412261953,-154.818986,0.00022384,2]
[371743841,1752412261962,-642.0,0.00022406,2]
[371743842,1752412261971,-411.90380907,0.00022434,2]
[371743843,1752412261981,-642.0,0.00022464,2]
[371743844,1752412261991,-202.73553631,0.00022464,2]
[371743845,1752412262000,-151.0,0.00022465,3]
[371743846,1752412262010,-459.6778463,0.00022465,2]
[371743847,1752412262020,-480.06,0.00022465,2]
[371743848,1752412262030,-460.0,0.00022465,2]
[371743849,1752412262039,-521.93,0.00022465,2]
[371743850,1752412262048,-546.38,0.00022465,2]
[371743851,1752412262057,-215.030696,0.00022465,7]
[371743852,1752412262067,-215.030696,0.00022465,7]
[371743853,1752412262076,-460.0,0.00022465,2]
[371743854,1752412262086,-1097.75,0.00022465,2]
[371743855,1752412262095,-460.0,0.00022465,2]
[371743856,1752412262107,-1912.71,0.00022465,2]
[371743857,1752412262117,-2434.91,0.00022465,2]
[371743858,1752412262127,-461.02,0.00022465,2]
[371743859,1752412262136,-507.11,0.00022465,2]
[371743860,1752412262145,-1857.93,0.00022465,2]
[371743861,1752412262155,-600.71,0.00022465,2]
[371743862,1752412262165,-1161.66,0.00022465,2]
[371743863,1752412262175,-1318.75,0.00022465,2]
[371743864,1752412262185,-625.22,0.00022465,2]
[371743865,1752412262195,-584.52,0.00022465,2]
[371743866,1752412262204,-658.56,0.00022465,2]
[371743867,1752412262214,-526.59,0.00022465,2]
[371743868,1752412262223,-798.12,0.00022465,2]
[371743869,1752412262233,-733.1,0.00022465,2]
[371743870,1752412262243,-217.07974326,0.00022465,2]
[371743871,1752412262253,-913.51,0.00022465,2]
[371743872,1752412262262,-957.33,0.00022465,2]
[371743873,1752412262272,-2411.81,0.00022465,2]
[371743874,1752412262281,-588.65,0.00022465,2]
[371743875,1752412262290,-2270.15,0.00022465,2]
[371743876,1752412262300,-642.75,0.00022465,2]
[371743877,1752412262311,-391.41193108,0.00022486,7]
[371743878,1752412262320,-642.0,0.00022501,2]
[371743879,1752412262329,-372.756912,0.00022603,2]
[371743880,1752412262338,-294.165135,0.00022615,7]
[371743881,1752412262348,-294.165135,0.00022615,7]
[371743882,1752412262359,-642.0,0.00022615,2]
[371743883,1752412262368,-642.0,0.00022691,2]
[371743884,1752412262378,-480.13,0.00022739,2]
[371743885,1752412262387,-334.48,0.00022739,2]
[371743886,1752412262397,-521.95423799,0.00022739,2]
[371743887,1752412262406,-546.43,0.00022739,2]
[371743888,1752412262415,-212.19,0.00022739,2]
[371743889,1752412262426,-1097.91,0.00022739,2]
[371743890,1752412262437,-218.31349346,0.00022739,2]
[371743891,1752412262447,-1912.7389944,0.00022739,2]
[371743892,1752412262456,-2434.93013303,0.00022739,2]
[371743893,1752412262467,-461.08,0.00022739,2]
[371743894,1752412262477,-507.2726038,0.00022739,2]
[371743895,1752412262488,-1857.98,0.00022739,2]
[371743896,1752412262498,-600.85143793,0.00022739,2]
[371743897,1752412262507,-1161.76,0.00022739,2]
[371743898,1752412262517,-1318.98,0.00022739,2]
[371743899,1752412262528,-625.3,0.00022739,2]
[371743900,1752412262542,-584.68,0.00022739,2]
[371743901,1752412262551,-658.63,0.00022739,2]
[371743902,1752412262560,-526.73,0.00022739,2]
[371743903,1752412262569,-798.13645765,0.00022739,2]
[371743904,1752412262580,-733.23,0.00022739,2]
[371743905,1752412262590,-913.7,0.00022739,2]
[371743906,1752412262602,-957.46504665,0.00022739,2]
[371743907,1752412262613,-2412.0,0.00022739,2]
[371743908,1752412262623,-588.78,0.00022739,2]
[371743909,1752412262633,-2270.21,0.00022739,2]
[371743910,1752412262642,-642.86,0.00022739,2]
[371743911,1752412262652,-411.90380907,0.00022776,2]
[371743912,1752412262661,-391.41193108,0.00022797,7]
[371743913,1752412262671,-348.26,0.00023,2]
[371743914,1752412262681,-391.41193108,0.00023107,8]
[371743915,1752412262691,-411.90380907,0.00023119,2]
[371743916,1752412262702,-391.41193108,0.00023417,9]
[371743917,1752412262711,-188.0,0.00023432,2]
[371743918,1752412262721,-411.90380907,0.00023461,2]
[371743919,1752412262731,-620.1947922,0.00023589,2]
[371743920,1752412262740,-2385.35,0.000237,7]
[371743921,1752412262750,-391.41193108,0.00023728,9]
[371743922,1752412262760,-769.72,0.000238,7]
[371743923,1752412262770,-2803.34,0.000238,2]
[371743924,1752412262779,-411.90380907,0.00023804,2]
[371743925,1752412262789,-151.0,0.00023883,6]
[371743926,1752412262799,-211.0,0.00024,2]
[371743927,1752412262810,-411.90380907,0.00024146,2]
[371743928,1752412262820,-5000.0,0.00024224,3]
[371743929,1752412262830,-151.0,0.000243,7]
[371743930,1752412262839,-151.0,0.000243,7]
[371743931,1752412262851,-246.529174,0.000243,7]
[371743932,1752412262860,-246.529174,0.000243,7]
[371743933,1752412262870,-151.0,0.000243,7]
[371743934,1752412262879,-214.29528141,0.000243,3]
[371743935,1752412262890,-160.0,0.000243,3]
[371743936,1752412262900,-215.42595214,0.000243,3]
[371743937,1752412262909,-160.0,0.000243,3]
[371743938,1752412262918,-160.0,0.000243,3]
[371743939,1752412262928,-160.0,0.000243,3]
[371743940,1752412262937,-230.68503973,0.000243,3]
[371743941,1752412262946,-151.0,0.00024357,7]
[371743942,1752412262956,-411.90380907,0.00024489,2]
[371743943,1752412262965,-205.0,0.0002457,2]
[371743944,1752412262976,-151.0,0.00024651,7]
[371743945,1752412262985,-12151.6035634,0.00024651,2]
[371743946,1752412263289,-255.55403481,0.00016986,2]
[371743947,1752412263300,-460.0,0.0001726,2]
[371743948,1752412263310,-460.0,0.00017534,2]
[371743949,1752412263320,-460.0,0.00017808,2]
[371743950,1752412263330,-460.0,0.00018082,2]
[371743951,1752412263341,-523.84,0.00018356,2]
[371743952,1752412263354,-460.0,0.00018356,2]
[371743953,1752412263364,-523.84,0.0001863,2]
[371743954,1752412263374,-407.58,0.0001863,2]
[371743955,1752412263384,-523.84,0.00018904,2]
[371743956,1752412263395,-523.84,0.00019178,2]
[371743957,1752412263405,-523.84,0.00019452,2]
[371743958,1752412263415,-45667.77692273,0.00024651,2]
[371743959,1752412263425,-289.935429,0.00024651,7]
[371743960,1752412263435,-289.935429,0.00024651,7]
[371743961,1752412263445,-238.845428,0.00024651,2]
[371743962,1752412263455,-238.845428,0.00024651,2]
[371743963,1752412263465,-380.0,0.00024658,2]
[371743964,1752412263475,-428.0,0.00024658,2]
[371743965,1752412263485,-151.0,0.00024659,3]
[371743966,1752412263494,-428.0,0.00024685,2]
[371743967,1752412263504,-428.0,0.00024713,2]
[371743968,1752412263514,-428.0,0.0002474,2]
[371743969,1752412263524,-428.0,0.00024768,2]
[371743970,1752412263538,-428.0,0.00024795,2]
[371743971,1752412263548,-31971.51856513,0.000248,2]
[371743972,1752412263559,-2000.0,0.000248,2]
[371743973,1752412263578,-215.030696,0.000248,7]
[371743974,1752412263588,-294.165135,0.000248,7]
[371743975,1752412263599,-294.165135,0.000248,7]
[371743976,1752412263612,-215.030696,0.000248,7]
[371743977,1752412263623,-4311.79347865,0.0002481,5]
[371743978,1752412263633,-56.07047917,0.0002481,7]
[371743979,1752412263645,-99.74937483,0.0002481,7]
[371743980,1752412263656,-151.0,0.0002481,7]
[371743981,1752412263666,-151.0,0.0002481,7]
[371743982,1752412263677,-428.0,0.00024822,2]
[371743983,1752412263687,-411.90380907,0.00024831,2]
[371743984,1752412263697,-428.0,0.0002485,2]
[371743985,1752412263707,-428.0,0.00024877,2]
[371743986,1752412263718,-1092.71499441,0.00024899,7]
[371743987,1752412263728,-205.0,0.000249,2]
[371743988,1752412263739,-151.0,0.000249,7]
[371743989,1752412263750,-151.0,0.000249,7]
[371743990,1752412263759,-168.342639,0.000249,7]
[371743991,1752412263769,-151.0,0.000249,7]
[371743992,1752412263779,-151.0,0.000249,3]
[371743993,1752412263790,-151.0,0.000249,7]
[371743994,1752412263800,-151.0,0.000249,7]
[371743995,1752412263810,-152.090588,0.000249,7]
[371743996,1752412263819,-151.0,0.000249,7]
[371743997,1752412263829,-151.73928,0.000249,7]
[371743998,1752412263839,-151.0,0.000249,7]
[371743999,1752412263848,-151.793725,0.000249,7]
[371744000,1752412263860,-151.0,0.000249,7]
[371744001,1752412263870,-201.251957,0.000249,7]
[371744002,1752412263879,-201.251957,0.000249,7]
[371744003,1752412263889,-151.0,0.000249,7]
[371744004,1752412263902,-151.0,0.000249,7]
[371744005,1752412263914,-151.0,0.000249,7]
[371744006,1752412263924,-287.169587,0.000249,7]
[371744007,1752412263933,-751.263363,0.000249,7]
[371744008,1752412263942,-751.263363,0.000249,7]
[371744009,1752412263951,-151.0,0.000249,7]
[371744010,1752412263960,-151.0,0.000249,7]
[371744011,1752412263969,-151.0,0.000249,7]
[371744012,1752412263978,-245.0,0.000249,7]
[371744013,1752412263988,-151.0,0.000249,7]
[371744014,1752412263996,-151.0,0.000249,7]
[371744015,1752412264005,-151.0,0.000249,7]
[371744016,1752412264014,-151.0,0.000249,7]
[371744017,1752412264023,-246.529174,0.000249,7]
[371744018,1752412264031,-246.529174,0.000249,7]
[371744019,1752412264041,-257.716072,0.000249,7]
[371744020,1752412264050,-151.0,0.000249,7]
[371744021,1752412264059,-151.0,0.000249,7]
[371744022,1752412264068,-277.115638,0.000249,7]
[371744023,1752412264077,-215.030696,0.000249,7]
[371744024,1752412264087,-294.165135,0.000249,7]
[371744025,1752412264096,-294.165135,0.000249,7]
[371744026,1752412264108,-215.030696,0.000249,7]
[371744027,1752412264117,-214.29528141,0.000249,7]
[371744028,1752412264128,-160.0,0.000249,7]
[371744029,1752412264137,-11621.88636128,0.000249,2]
[371744030,1752412264218,-459.7555823,0.00016438,2]
[371744031,1752412264230,-0.2444177,0.00016438,2]
[371744032,1752412264240,-460.0,0.00016438,2]
[371744033,1752412264251,-460.0,0.00016712,2]
[371744034,1752412264260,-558.08050673,0.000249,2]
[371744035,1752412264885,188.99753146,0.00023969,10]
[371744036,1752412264919,188.99753146,0.00024245,10]
[371744037,1752412265044,188.99753146,0.00024521,11]
[371744038,1752412265078,188.99753146,0.00024797,11]
[371744039,1752412265112,188.99753146,0.00025072,12]
[371744040,1752412265145,188.99753146,0.00025348,13]
[371744041,1752412265184,188.99753146,0.00025624,13]
[371744042,1752412265222,188.99753146,0.000259,14]
[371744043,1752412265432,163.745149,0.00031255,12]
[371744044,1752412267254,838.53376533,0.00026,30]
[371744045,1752412272332,500.0,0.0004,15]
[371744046,1752412290791,200.0,0.00032576,120]
[371744047,1752412295484,500.0,0.00039,120]
[371744048,1752412296743,500.0,0.00039,120]
[371744049,1752412296986,500.0,0.0004,15]
[371744050,1752412297833,500.0,0.00039,120]
[371744051,1752412299288,500.0,0.00039,120]
[371744052,1752412300381,500.0,0.00039,120]
[371744053,1752412301195,500.0,0.00039,120]
[371744054,1752412302222,500.0,0.00039,120]
[371744055,1752412303300,500.0,0.00039,120]
[371744056,1752412304432,500.0,0.00039,120]
[371744057,1752412305205,500.0,0.00039,120]
[371744058,1752412306019,500.0,0.00039,120]
[371744059,1752412307010,208.0,0.0004,30]
[371744060,1752412307132,500.0,0.00039,120]
[371744061,1752412308165,500.0,0.00039,120]
[371744062,1752412308243,208.0,0.0003892,30]
[371744063,1752412309813,500.0,0.00039,120]
[371744064,1752412310609,500.0,0.00039,120]
[371744065,1752412313671,500.0,0.00039,120]
[371744066,1752412314541,500.0,0.00039,120]
[371744067,1752412315574,500.0,0.00039,120]
[371744068,1752412316508,500.0,0.00039,120]
[371744069,1752412317415,500.0,0.00039,120]
[371744070,1752412318447,500.0,0.00039,120]
[371744071,1752412319318,500.0,0.00039,120]
[371744072,1752412320990,500.0,0.00039,120]
[371744073,1752412321815,500.0,0.00039,120]
[371744074,1752412323339,500.0,0.00039,120]
[371744075,1752412324194,500.0,0.00039,120]
[371744076,1752412327596,190.0,0.00024,120]
[371744077,1752412327933,500.0,0.00039,120]
[371744078,1752412329319,184.0,0.00036,30]
[371744079,1752412329515,500.0,0.00039,120]
[371744080,1752412329650,184.0,0.00037397,30]
[371744081,1752412331332,500.0,0.00039,120]
[371744082,1752412332297,500.0,0.00039,120]
[371744083,1752412333080,500.0,0.00039,120]
[371744084,1752412334153,500.0,0.00039,120]
[371744085,1752412334469,200.0,0.0003661,44]
[371744086,1752412334812,201.0,0.0003914,51]
[371744087,1752412335021,500.0,0.00039,120]
[371744088,1752412335706,500.0,0.00039,120]
[371744089,1752412336361,31252.869999,0.00039,10]
[371744090,1752412336498,500.0,0.00039,120]
[371744091,1752412338219,500.0,0.00039,120]
[371744092,1752412339721,500.0,0.00039,120]
[371744093,1752412340916,322.78,0.00039,120]
[371744094,1752412348603,435.0,0.00024841,120]
[371744095,1752412349072,435.0,0.00024831,120]
[371744096,1752412349516,435.0,0.00024821,120]
[371744097,1752412349962,435.0,0.0002489,120]
[371744098,1752412350412,435.0,0.0002488,120]
[371744099,1752412350861,435.0,0.0002487,120]
[371744100,1752412351434,435.0,0.00024977,120]
[371744101,1752412351892,435.0,0.00024967,120]
[371744102,1752412352340,435.0,0.00025274,120]
[371744103,1752412352798,439.81,0.00025264,120]
[371744104,1752412389332,159.282068,0.00034728,12]
[371744105,1752412400187,5193.32656752,0.0004,10]
[371744106,1752412408732,1682.0,0.000347,14]
[371744107,1752412409313,1682.0,0.000379,14]
[371744108,1752412421502,381.10181704,0.00024038,10]
[371744109,1752412421584,381.10181704,0.00024348,11]
[371744110,1752412421659,381.10181704,0.00024659,11]
[371744111,1752412421741,381.10181704,0.00024969,12]
[371744112,1752412421842,381.10181704,0.00025279,12]
[371744113,1752412421931,381.10181704,0.0002559,13]
[371744114,1752412422028,381.10181704,0.000259,14]
[371744117,1752412449154,159.282068,0.0003215,10]
[371744118,1752412452901,200.0,0.0004,60]
[371744119,1752412493785,5888.0,0.0004,10]
[371744120,1752412503332,599.17,0.00025013,60]
[371744121,1752412503364,401.0,0.00025013,120]
[371744122,1752412527505,525.37265586,0.00028,10]
[371744123,1752412528405,525.37265586,0.00028,10]
[371744124,1752412544155,2579.16,0.00027426,13]
[371744125,1752412544405,2579.16,0.00027626,23]
[371744126,1752412544681,2579.16,0.00027926,11]
[371744127,1752412544811,2579.16,0.00027726,15]
[371744128,1752412544967,2579.16,0.00028026,10]
[371744129,1752412545088,2579.16,0.00028126,13]
[371744130,1752412545178,2579.16,0.00028226,28]
[371744131,1752412545333,2579.16,0.00028326,27]
[371744132,1752412545416,2579.16,0.00028426,27]
[371744133,1752412545637,2579.16,0.00028626,10]
[371744134,1752412545874,2579.16,0.00028726,23]
[371744135,1752412546110,2579.16,0.00028826,23]
[371744136,1752412546341,2579.16,0.00028926,30]
[371744137,1752412546588,2579.16,0.00029026,14]
[371744138,1752412546896,2579.16,0.00027826,23]
[371744139,1752412546935,2579.16,0.00029126,15]
[371744140,1752412547171,2579.16,0.00029226,20]
[371744141,1752412547243,2579.16,0.00029326,20]
[371744142,1752412547398,2579.16,0.00029426,24]
[371744143,1752412547546,2579.16,0.00029526,19]
[371744144,1752412547976,2579.16,0.00028526,27]
[371744145,1752412548058,2579.16,0.00029826,26]
[371744146,1752412548253,2579.16,0.00029926,13]
[371744147,1752412548295,2579.16,0.00030026,13]
[371744148,1752412548509,2579.16,0.00030126,27]
[371744149,1752412548541,2579.16,0.00030226,21]
[371744150,1752412548757,2579.16,0.00030326,14]
[371744151,1752412548795,2579.16,0.00030426,13]
[371744152,1752412549300,2579.16,0.00030626,17]
[371744153,1752412549689,2579.16,0.00030826,24]
[371744154,1752412550094,2579.16,0.00029626,26]
[371744155,1752412550174,2579.16,0.00031026,26]
[371744156,1752412550316,2579.16,0.00031126,11]
[371744157,1752412550414,2579.16,0.00031226,22]
[371744158,1752412550750,2579.16,0.00031326,24]
[371744159,1752412550883,2579.16,0.00031426,20]
[371744160,1752412551033,2579.16,0.00031526,13]
[371744161,1752412551138,2579.16,0.00031626,22]
[371744162,1752412551259,2579.16,0.00031726,20]
[371744163,1752412551388,2579.16,0.00031826,21]
[371744164,1752412551523,2579.16,0.00031926,28]
[371744165,1752412551620,2579.16,0.00032026,18]
[371744166,1752412551833,2579.16,0.00032226,25]
[371744167,1752412551972,2579.16,0.00030726,15]
[371744168,1752412552043,2580.14723635,0.00032426,15]
[371744169,1752412552346,10000.0,4e-05,120]
[371744170,1752412554300,2579.16,0.00032326,25]
[371744171,1752412579796,331.31925284,0.00024038,10]
[371744172,1752412579895,331.31925284,0.00024348,11]
[371744173,1752412579990,331.31925284,0.00024659,11]
[371744174,1752412580076,331.31925284,0.00024969,12]
[371744175,1752412580166,331.31925284,0.00025279,12]
[371744176,1752412580249,331.31925284,0.0002559,13]
[371744177,1752412580399,331.31925284,0.000259,14]
[371744178,1752412609724,1806.6,0.000357,14]
[371744179,1752412648208,500.0,0.0004,15]
[371744182,1752412696353,55862.66,0.00024926,10]
[371744183,1752412716598,215.42595214,0.00029,10]
[371744184,1752412721569,6005.2,0.00024926,10]
[371744186,1752412733425,293.15262028,0.00024038,10]
[371744187,1752412733501,293.15262028,0.00024348,11]
[371744188,1752412733605,293.15262028,0.00024659,11]
[371744189,1752412734816,293.15262028,0.00024969,12]
[371744190,1752412734882,6118.74,0.00024926,10]
[371744191,1752412734917,293.15262028,0.00025279,12]
[371744192,1752412735143,293.15262028,0.0002559,13]
[371744193,1752412735225,293.15262028,0.000259,14]
[371744196,1752412741866,500.0,0.00039,30]
[371744197,1752412757234,500.0,0.00039,30]
[371744198,1752412786898,2000.0,0.00031332,15]
[371744203,1752412819671,1445.28,0.000342,14]
[371744205,1752412826328,609.333579,0.00027397,120]
[371744206,1752412826539,609.333579,0.00031963,120]
[371744207,1752412826754,609.333579,0.0003653,120]
[371744208,1752412829593,227.8363,0.00029,120]
[371744209,1752412830749,525.37265586,0.00028,10]
[371744210,1752412831671,525.37265586,0.00028,10]
[371744211,1752412835440,200.0,0.00027,120]
[371744212,1752412835800,294.17359,0.000279,120]
[371744217,1752412888622,20687.41625325,0.0004,10]
[371744218,1752412892024,224.75034222,0.00024038,10]
[371744219,1752412892125,224.75034222,0.00024348,11]
[371744220,1752412892204,224.75034222,0.00024659,11]
[371744221,1752412892295,224.75034222,0.00024969,12]
[371744222,1752412892384,300.0,0.0004,120]
[371744223,1752412892420,224.75034222,0.00025279,12]
[371744224,1752412892542,224.75034222,0.0002559,13]
[371744225,1752412892633,224.75034222,0.000259,14]
[371744226,1752412901572,151.0,0.000236,10]
[371744227,1752412909281,301.0,0.0004,120]
[371744232,1752413020428,215.42595214,0.00029,10]
[371744233,1752413024516,1581.08,0.000363,14]
[371744238,1752413046325,523.085393,0.00013699,2]
[371744239,1752413057508,211.44978881,0.00024038,10]
[371744240,1752413057587,211.44978881,0.00024348,11]
[371744241,1752413057664,211.44978881,0.00024659,11]
[371744242,1752413057734,211.44978881,0.00024969,12]
[371744243,1752413057821,211.44978881,0.00025279,12]
[371744244,1752413057921,211.44978881,0.0002559,13]
[371744245,1752413058004,211.44978881,0.000259,14]
[371744246,1752413068232,160.0,0.00026,30]
[371744247,1752413092500,230.68503973,0.00026,30]
[371744248,1752413119314,540.91731978,0.00013699,2]
[371744250,1752413120086,405.68798984,0.00013699,2]
[371744251,1752413121018,304.26599238,0.00013699,2]
[371744252,1752413121756,228.19949428,0.00013699,2]
[371744253,1752413122502,171.14962071,0.00013699,2]
[371744254,1752413123432,151.0,0.00013699,2]
[371744255,1752413134047,525.37265586,0.00028,10]
[371744256,1752413134955,525.37265586,0.00028,10]
[371744258,1752413135361,525.37265586,0.00028,10]